[Event "GER-ch Blitz 2019"]
[Site "Magdeburg"]
[Date "2019.05.25"]
[Round "5.14"]
[White "Heistermann, Till"]
[Black "Krause, Benedict"]
[Result "0-1"]
[ECO "D79"]
[WhiteElo "2181"]
[BlackElo "2434"]
[Annotator "NA"]
[PlyCount "120"]
[EventDate "2019.05.25"]
[EventType "tourn"]
[EventCountry "GER"]
[Tiebreak "Number of wins+Number of black wins"]
[SourceTitle "playchess.com"]
[Source "ChessBase"]
[SourceQuality "1"]
[TimeControl "180+2"]

1. Nf3 {[%emt 0:00:00]} Nf6 {[%emt 0:00:00]} 2. g3 {[%emt 0:00:00]} g6 {
[%emt 0:00:00]} 3. Bg2 {[%emt 0:00:01]} Bg7 {[%emt 0:00:00]} 4. O-O {[%emt 0:
00:02]} O-O 5. c4 c6 {[%emt 0:00:02]} 6. d4 {[%emt 0:00:05]} d5 {[%emt 0:00:01]
} 7. cxd5 {[%emt 0:00:01]} cxd5 {[%emt 0:00:01]} 8. Nc3 {[%emt 0:00:01]} Ne4 {
[%emt 0:00:02]} 9. e3 {[%emt 0:00:04]} Nxc3 {[%emt 0:00:02]} 10. bxc3 {[%emt 0:
00:01]} Nc6 {[%emt 0:00:01]} 11. Qb3 {[%emt 0:00:26]} Na5 {[%emt 0:00:08]} 12.
Qa4 {[%emt 0:00:03]} Bd7 {[%emt 0:00:06]} 13. Qb4 {[%emt 0:00:01]} e6 {[%emt 0:
00:02]} 14. Nd2 {[%emt 0:00:07]} Rc8 {[%emt 0:00:06]} 15. Ba3 {[%emt 0:00:30]}
Re8 {[%emt 0:00:28]} 16. Qb2 {[%emt 0:00:04]} b6 {[%emt 0:00:18]} 17. Rac1 {
[%emt 0:00:06]} Nc4 {[%emt 0:00:12]} 18. Nxc4 {[%emt 0:00:01]} Rxc4 {[%emt 0:
00:01]} 19. Rfe1 {[%emt 0:00:04]} Bf8 {[%emt 0:00:47]} 20. e4 {[%emt 0:00:05]}
dxe4 {[%emt 0:00:21]} 21. Bxe4 {[%emt 0:00:01]} Bc6 {[%emt 0:00:05]} 22. Bxf8 {
[%emt 0:00:06]} Rxf8 {[%emt 0:00:01]} 23. Qe2 {[%emt 0:00:11]} Bd5 {[%emt 0:00:
13]} 24. Rc2 {[%emt 0:00:19]} Bxe4 {[%emt 0:00:04]} 25. Qxe4 {[%emt 0:00:01]}
Qd7 {[%emt 0:00:02]} 26. h4 {[%emt 0:00:17]} h5 {[%emt 0:00:01]} 27. g4 {
[%emt 0:00:08]} hxg4 {[%emt 0:00:18]} 28. Qxg4 {[%emt 0:00:01]} Qd5 {[%emt 0:
00:02]} 29. Re3 {[%emt 0:00:04]} Rfc8 {[%emt 0:00:05]} 30. Rd3 {[%emt 0:00:19]}
b5 {[%emt 0:00:04]} 31. a3 {[%emt 0:00:01]} a5 {[%emt 0:00:01]} 32. h5 {
[%emt 0:00:22]} Qxh5 {[%emt 0:00:03]} 33. Qxh5 {[%emt 0:00:02]} gxh5 {[%emt 0:
00:00]} 34. Rb2 {[%emt 0:00:07]} Rxc3 {[%emt 0:00:01]} 35. Rxc3 {[%emt 0:00:01]
} Rxc3 {[%emt 0:00:01]} 36. Rxb5 {[%emt 0:00:00]} Rxa3 {[%emt 0:00:01]} 37.
Rxh5 {[%emt 0:00:02]} Kg7 {[%emt 0:00:02]} 38. Kg2 {[%emt 0:00:10]} Kf6 {
[%emt 0:00:01]} 39. Rb5 {[%emt 0:00:01]} Ra1 {[%emt 0:00:01]} 40. d5 {[%emt 0:
00:02]} exd5 {[%emt 0:00:01]} 41. Rxd5 {[%emt 0:00:01]} a4 {[%emt 0:00:01]} 42.
Ra5 {[%emt 0:00:01]} a3 {[%emt 0:00:00]} 43. Kh2 {[%emt 0:00:03]} Ke6 {[%emt 0:
00:01]} 44. Kg2 Kd6 45. Ra7 {[%emt 0:00:03]} Kc5 {[%emt 0:00:04]} 46. Rxf7 {
[%emt 0:00:03]} Rd1 {[%emt 0:00:08]} 47. Ra7 {[%emt 0:00:02]} Kb4 {[%emt 0:00:
00]} 48. f4 {[%emt 0:00:04]} Kb3 {[%emt 0:00:02]} 49. Kg3 {[%emt 0:00:02]} a2 {
[%emt 0:00:07]} 50. Kg4 {[%emt 0:00:06]} a1=Q {[%emt 0:00:05]} 51. Rxa1 {
[%emt 0:00:01]} Rxa1 {[%emt 0:00:01]} 52. Kf5 {[%emt 0:00:06]} Kc4 {[%emt 0:00:
01]} 53. Ke5 {[%emt 0:00:01]} Re1+ {[%emt 0:00:04]} 54. Kd6 {[%emt 0:00:03]}
Rf1 {[%emt 0:00:04]} 55. Ke5 {[%emt 0:00:01]} Kc5 {[%emt 0:00:01]} 56. f5 {
[%emt 0:00:03]} Re1+ {[%emt 0:00:00]} 57. Kf6 {[%emt 0:00:01]} Kd6 {[%emt 0:00:
01]} 58. Kg7 {[%emt 0:00:04]} Ke7 {[%emt 0:00:10]} 59. f6+ Ke6 60. f7 {[%emt 0:
00:11]} Rg1+ {[%emt 0:00:01]} 0-1

[Event "GER-ch Blitz 2019"]
[Site "Magdeburg"]
[Date "2019.05.25"]
[Round "5.15"]
[White "Hebbinghaus, Holger"]
[Black "Barzen, Pascal"]
[Result "0-1"]
[ECO "B13"]
[WhiteElo "2310"]
[BlackElo "2292"]
[Annotator "NA"]
[PlyCount "122"]
[EventDate "2019.05.25"]
[EventType "tourn"]
[EventCountry "GER"]
[Tiebreak "Number of wins+Number of black wins"]
[SourceTitle "playchess.com"]
[Source "ChessBase"]
[SourceQuality "1"]
[TimeControl "180+2"]

1. e4 {[%emt 0:00:00]} c6 {[%emt 0:00:00]} 2. d4 {[%emt 0:00:00]} d5 {[%emt 0:
00:01]} 3. exd5 {[%emt 0:00:02]} cxd5 {[%emt 0:00:01]} 4. Bf4 {[%emt 0:00:01]}
Nc6 {[%emt 0:00:01]} 5. c3 {[%emt 0:00:02]} Nf6 {[%emt 0:00:01]} 6. Nd2 {
[%emt 0:00:02]} Bg4 {[%emt 0:00:01]} 7. Qb3 {[%emt 0:00:05]} Qc8 {[%emt 0:00:
01]} 8. Ngf3 {[%emt 0:00:09]} e6 {[%emt 0:00:01]} 9. Bd3 {[%emt 0:00:03]} Be7 {
[%emt 0:00:00]} 10. O-O {[%emt 0:00:07]} O-O {[%emt 0:00:02]} 11. Ne5 {[%emt 0:
00:03]} Bh5 {[%emt 0:00:05]} 12. Qc2 {[%emt 0:00:10]} Bg6 {[%emt 0:00:11]} 13.
Nxg6 {[%emt 0:00:06]} hxg6 {[%emt 0:00:01]} 14. Rae1 {[%emt 0:00:09]} a6 {
[%emt 0:00:01]} 15. Nf3 {[%emt 0:00:20]} b5 {[%emt 0:00:01]} 16. a3 {[%emt 0:
00:08]} Qb7 {[%emt 0:00:08]} 17. Re3 {[%emt 0:00:38]} Rac8 {[%emt 0:00:04]} 18.
Qe2 {[%emt 0:00:06]} Ng4 {[%emt 0:00:08]} 19. Rxe6 {[%emt 0:00:12]} Qd7 {
[%emt 0:00:53]} 20. Rxe7 {[%emt 0:00:52]} Qxe7 {[%emt 0:00:04]} 21. Qd2 {
[%emt 0:00:07]} Nf6 {[%emt 0:00:05]} 22. Re1 {[%emt 0:00:03]} Ne4 {[%emt 0:00:
16]} 23. Qe3 {[%emt 0:00:06]} Rfe8 {[%emt 0:00:02]} 24. h4 {[%emt 0:00:07]} Qd7
{[%emt 0:00:11]} 25. Qc1 {[%emt 0:00:03]} Qg4 {[%emt 0:00:01]} 26. Bh2 {
[%emt 0:00:03]} Nf6 {[%emt 0:00:25]} 27. Rxe8+ {[%emt 0:00:05]} Rxe8 {[%emt 0:
00:01]} 28. Bg3 {[%emt 0:00:04]} Ne4 {[%emt 0:00:01]} 29. Bh2 {[%emt 0:00:02]}
Ne7 {[%emt 0:00:11]} 30. Qf4 {[%emt 0:00:01]} Qxf4 31. Bxf4 {[%emt 0:00:01]} f6
{[%emt 0:00:07]} 32. Kf1 {[%emt 0:00:02]} Nc6 {[%emt 0:00:03]} 33. g4 {[%emt 0:
00:02]} Kf7 {[%emt 0:00:02]} 34. Ne1 {[%emt 0:00:02]} Na5 {[%emt 0:00:02]} 35.
Bc2 {[%emt 0:00:02]} Nc4 {[%emt 0:00:01]} 36. Nd3 g5 {[%emt 0:00:07]} 37. hxg5
{[%emt 0:00:03]} fxg5 {[%emt 0:00:00]} 38. Be5 {[%emt 0:00:03]} Nf6 {[%emt 0:
00:09]} 39. f3 {[%emt 0:00:00]} Nd7 {[%emt 0:00:01]} 40. Kf2 {[%emt 0:00:03]}
Ndxe5 {[%emt 0:00:02]} 41. dxe5 {[%emt 0:00:01]} Nxe5 {[%emt 0:00:01]} 42. Nb4
{[%emt 0:00:02]} Nc4 {[%emt 0:00:04]} 43. Nd3 {[%emt 0:00:02]} d4 {[%emt 0:00:
07]} 44. cxd4 Rd8 45. b3 {[%emt 0:00:04]} Nxa3 {[%emt 0:00:01]} 46. Bd1 {
[%emt 0:00:01]} Rxd4 {[%emt 0:00:01]} 47. Ke3 {[%emt 0:00:01]} Rd8 {[%emt 0:00:
02]} 48. Ne5+ {[%emt 0:00:02]} Kf6 {[%emt 0:00:02]} 49. Nd3 {[%emt 0:00:01]}
Nb1 {[%emt 0:00:06]} 50. Bc2 {[%emt 0:00:03]} Nc3 {[%emt 0:00:03]} 51. Nc5 {
[%emt 0:00:02]} Nd5+ {[%emt 0:00:02]} 52. Ke2 {[%emt 0:00:02]} Nf4+ {[%emt 0:
00:01]} 53. Ke3 {[%emt 0:00:01]} Rc8 {[%emt 0:00:01]} 54. Ne4+ {[%emt 0:00:02]}
Ke5 {[%emt 0:00:02]} 55. Bd1 {[%emt 0:00:01]} a5 {[%emt 0:00:04]} 56. Kd2 {
[%emt 0:00:04]} Kd4 {[%emt 0:00:02]} 57. Nd6 {[%emt 0:00:02]} Rd8 {[%emt 0:00:
05]} 58. Nf5+ {[%emt 0:00:04]} Kc5+ {[%emt 0:00:02]} 59. Kc2 {[%emt 0:00:01]}
a4 {[%emt 0:00:02]} 60. bxa4 {[%emt 0:00:03]} bxa4 {[%emt 0:00:01]} 61. Nxg7 {
[%emt 0:00:01]} a3 {[%emt 0:00:03]} 0-1

[Event "GER-ch Blitz 2019"]
[Site "Magdeburg"]
[Date "2019.05.25"]
[Round "6.1"]
[White "Heidrich, Manfred"]
[Black "Gustafsson, Jan"]
[Result "1/2-1/2"]
[ECO "C48"]
[WhiteElo "2351"]
[BlackElo "2639"]
[Annotator "ChessBase"]
[PlyCount "128"]
[EventDate "2019.05.25"]
[EventType "tourn"]
[EventCountry "GER"]
[Tiebreak "Number of wins+Number of black wins"]
[SourceTitle "playchess.com"]
[Source "ChessBase"]
[SourceQuality "1"]
[TimeControl "180+2"]

1. e4 {[%emt 0:00:00]} e5 {[%emt 0:00:00]} 2. Nf3 {[%emt 0:00:00]} Nc6 {
[%emt 0:00:00]} 3. Nc3 {[%emt 0:00:04]} Nf6 {[%emt 0:00:02]} 4. Bb5 Bd6 {
[%emt 0:00:03]} 5. d4 {[%emt 0:00:05]} O-O {[%emt 0:00:02]} 6. O-O {[%emt 0:00:
13]} exd4 {[%emt 0:00:06]} 7. Nxd4 {[%emt 0:00:01]} Nxd4 {[%emt 0:00:06]} 8.
Qxd4 {[%emt 0:00:02]} Qe7 9. Bg5 {[%emt 0:00:27]} Bxh2+ {[%emt 0:00:10]} 10.
Kh1 {[%emt 0:00:09]} Be5 {[%emt 0:00:02]} 11. Qd3 {[%emt 0:00:02]} c6 {[%emt 0:
00:03]} 12. Ba4 {[%emt 0:00:10]} Qb4 {[%emt 0:00:16]} 13. Bb3 {[%emt 0:00:06]}
Bxc3 {[%emt 0:00:12]} 14. bxc3 {[%emt 0:00:06]} Qxe4 {[%emt 0:00:03]} 15. Bxf6
{[%emt 0:00:12]} Qxd3 {[%emt 0:00:02]} 16. cxd3 {[%emt 0:00:00]} gxf6 {[%emt 0:
00:03]} 17. Rfe1 {[%emt 0:00:07]} d5 {[%emt 0:00:01]} 18. Re7 {[%emt 0:00:02]}
Bf5 {[%emt 0:00:06]} 19. Rxb7 {[%emt 0:00:22]} Bxd3 {[%emt 0:00:03]} 20. Ba4 {
[%emt 0:00:08]} c5 {[%emt 0:00:29]} 21. Re1 {[%emt 0:00:11]} Rab8 {[%emt 0:00:
16]} 22. Ree7 {[%emt 0:00:12]} Rxb7 {[%emt 0:00:02]} 23. Rxb7 {[%emt 0:00:10]}
a5 {[%emt 0:00:02]} 24. Rd7 {[%emt 0:00:02]} Bc4 {[%emt 0:00:04]} 25. Bb3 {
[%emt 0:00:02]} Bxb3 {[%emt 0:00:02]} 26. axb3 {[%emt 0:00:01]} c4 {[%emt 0:00:
21]} 27. bxc4 {[%emt 0:00:09]} dxc4 {[%emt 0:00:01]} 28. Ra7 {[%emt 0:00:01]}
Rd8 {[%emt 0:00:03]} 29. Rxa5 {[%emt 0:00:02]} Rd3 {[%emt 0:00:02]} 30. Ra3 {
[%emt 0:00:05]} Kg7 {[%emt 0:00:01]} 31. Kg1 {[%emt 0:00:02]} Kg6 {[%emt 0:00:
02]} 32. Kf1 {[%emt 0:00:01]} f5 {[%emt 0:00:03]} 33. Ke2 {[%emt 0:00:02]} f4 {
[%emt 0:00:05]} 34. f3 {[%emt 0:00:04]} h5 {[%emt 0:00:08]} 35. Ra6+ {[%emt 0:
00:06]} f6 {[%emt 0:00:02]} 36. Ra3 {[%emt 0:00:01]} Kg5 {[%emt 0:00:04]} 37.
Kf2 {[%emt 0:00:05]} Rd2+ {[%emt 0:00:02]} 38. Kg1 {[%emt 0:00:14]} Rc2 {
[%emt 0:00:02]} 39. Kh2 {[%emt 0:00:06]} Kh4 {[%emt 0:00:08]} 40. Ra6 {[%emt 0:
00:10]} Rxc3 {[%emt 0:00:02]} 41. Rxf6 {[%emt 0:00:01]} Kg5 {[%emt 0:00:01]}
42. Rc6 {[%emt 0:00:00]} Rc1 {[%emt 0:00:04]} 43. Rc5+ {[%emt 0:00:02]} Kg6 {
[%emt 0:00:05]} 44. Rc6+ {[%emt 0:00:01]} Kf7 {[%emt 0:00:05]} 45. Rh6 {
[%emt 0:00:04]} c3 {[%emt 0:00:03]} 46. Rxh5 {[%emt 0:00:01]} Ke6 {[%emt 0:00:
02]} 47. Rc5 {[%emt 0:00:01]} Kd6 {[%emt 0:00:01]} 48. Rc4 {[%emt 0:00:01]} Kd5
{[%emt 0:00:01]} 49. Rc8 {[%emt 0:00:02]} Kd4 {[%emt 0:00:01]} 50. Rd8+ {
[%emt 0:00:03]} Ke3 {[%emt 0:00:01]} 51. Re8+ {[%emt 0:00:01]} Kf2 {[%emt 0:00:
02]} 52. Rc8 {[%emt 0:00:01]} Ke2 {[%emt 0:00:05]} 53. Kh3 {[%emt 0:00:03]} Kd2
{[%emt 0:00:02]} 54. Kg4 {[%emt 0:00:01]} Rg1 {[%emt 0:00:01]} 55. Kxf4 {
[%emt 0:00:01]} Rxg2 {[%emt 0:00:03]} 56. Ke4 {[%emt 0:00:01]} c2 {[%emt 0:00:
03]} 57. f4 {[%emt 0:00:00]} c1=Q {[%emt 0:00:12]} 58. Rxc1 {[%emt 0:00:01]}
Kxc1 {[%emt 0:00:03]} 59. f5 Kd2 {[%emt 0:00:02]} 60. f6 {[%emt 0:00:02]} Kc3 {
[%emt 0:00:10]} 61. Ke5 {[%emt 0:00:01]} Kc4 {[%emt 0:00:02]} 62. f7 {[%emt 0:
00:02]} Rf2 {[%emt 0:00:01]} 63. Ke6 {[%emt 0:00:00]} Kc5 {[%emt 0:00:03]} 64.
Ke7 {[%emt 0:00:01]} Rxf7+ 1/2-1/2

[Event "GER-ch Blitz 2019"]
[Site "Magdeburg"]
[Date "2019.05.25"]
[Round "6.2"]
[White "Kirchner, Thomas"]
[Black "Svane, Frederik"]
[Result "0-1"]
[ECO "C02"]
[WhiteElo "2311"]
[BlackElo "2342"]
[Annotator "NA"]
[PlyCount "83"]
[EventDate "2019.05.25"]
[EventType "tourn"]
[EventCountry "GER"]
[Tiebreak "Number of wins+Number of black wins"]
[SourceTitle "playchess.com"]
[Source "ChessBase"]
[SourceQuality "1"]
[TimeControl "180+2"]

1. e4 {[%emt 0:00:00]} c5 {[%emt 0:00:00]} 2. Nf3 {[%emt 0:00:00]} e6 {[%emt 0:
00:00]} 3. c3 {[%emt 0:00:02]} d5 {[%emt 0:00:03]} 4. e5 {[%emt 0:00:01]} Nc6 {
[%emt 0:00:06]} 5. d4 {[%emt 0:00:01]} Bd7 {[%emt 0:00:03]} 6. Bd3 {[%emt 0:00:
02]} Qb6 {[%emt 0:00:03]} 7. Bc2 {[%emt 0:00:01]} cxd4 {[%emt 0:00:07]} 8. cxd4
{[%emt 0:00:02]} Nb4 {[%emt 0:00:01]} 9. Nc3 {[%emt 0:00:06]} Nxc2+ {[%emt 0:
00:06]} 10. Qxc2 {[%emt 0:00:01]} Ne7 {[%emt 0:00:25]} 11. O-O {[%emt 0:00:04]}
Nf5 {[%emt 0:00:14]} 12. Rd1 {[%emt 0:00:14]} Be7 {[%emt 0:00:04]} 13. Be3 {
[%emt 0:00:31]} Rc8 {[%emt 0:00:10]} 14. a3 {[%emt 0:00:02]} O-O {[%emt 0:00:
10]} 15. Rac1 {[%emt 0:00:01]} Rc4 {[%emt 0:00:16]} 16. Nd2 {[%emt 0:00:26]}
Rc7 {[%emt 0:00:18]} 17. b4 {[%emt 0:00:37]} Rfc8 {[%emt 0:00:56]} 18. Qd3 {
[%emt 0:00:08]} Qa6 {[%emt 0:00:06]} 19. Qxa6 {[%emt 0:00:05]} bxa6 {[%emt 0:
00:01]} 20. Ne2 {[%emt 0:00:01]} Bb5 {[%emt 0:00:11]} 21. Rxc7 {[%emt 0:00:10]}
Rxc7 {[%emt 0:00:00]} 22. Rc1 {[%emt 0:00:04]} Rxc1+ {[%emt 0:00:03]} 23. Nxc1
{[%emt 0:00:01]} a5 {[%emt 0:00:02]} 24. bxa5 {[%emt 0:00:07]} Bxa3 {[%emt 0:
00:01]} 25. Ncb3 {[%emt 0:00:01]} Bb4 {[%emt 0:00:08]} 26. g4 {[%emt 0:00:01]}
Ne7 {[%emt 0:00:04]} 27. Kg2 {[%emt 0:00:03]} Nc6 {[%emt 0:00:01]} 28. f4 {
[%emt 0:00:10]} Nxa5 29. Nxa5 Bxa5 {[%emt 0:00:01]} 30. Nb3 {[%emt 0:00:05]}
Bc3 {[%emt 0:00:02]} 31. Kf3 {[%emt 0:00:02]} a5 {[%emt 0:00:02]} 32. Bd2 {
[%emt 0:00:07]} Bxd2 {[%emt 0:00:02]} 33. Nxd2 {[%emt 0:00:01]} Kf8 {[%emt 0:
00:03]} 34. Ke3 {[%emt 0:00:02]} Ke7 {[%emt 0:00:02]} 35. g5 {[%emt 0:00:02]}
Kd7 {[%emt 0:00:05]} 36. Nb1 {[%emt 0:00:01]} Kc6 {[%emt 0:00:02]} 37. Kd2 {
[%emt 0:00:03]} Bc4 {[%emt 0:00:04]} 38. Na3 {[%emt 0:00:02]} Bf1 {[%emt 0:00:
04]} 39. h4 {[%emt 0:00:02]} Kb6 {[%emt 0:00:05]} 40. Kc3 {[%emt 0:00:01]} Be2
{[%emt 0:00:03]} 41. Kd2 {[%emt 0:00:01]} Bf1 {[%emt 0:00:02]} 42. Kc3 {
[%emt 0:00:00]} 0-1

[Event "GER-ch Blitz 2019"]
[Site "Magdeburg"]
[Date "2019.05.25"]
[Round "6.3"]
[White "Schulze, Marc"]
[Black "Kopylov, Michael"]
[Result "0-1"]
[ECO "D00"]
[WhiteElo "2220"]
[BlackElo "2413"]
[Annotator "NA"]
[PlyCount "102"]
[EventDate "2019.05.25"]
[EventType "tourn"]
[EventCountry "GER"]
[Tiebreak "Number of wins+Number of black wins"]
[SourceTitle "playchess.com"]
[Source "ChessBase"]
[SourceQuality "1"]
[TimeControl "180+2"]

1. d4 {[%emt 0:00:00]} d5 {[%emt 0:00:00]} 2. Bf4 {[%emt 0:00:01]} Nf6 {
[%emt 0:00:01]} 3. e3 {[%emt 0:00:01]} g6 {[%emt 0:00:01]} 4. Nf3 {[%emt 0:00:
01]} Bg7 {[%emt 0:00:00]} 5. h3 {[%emt 0:00:01]} O-O {[%emt 0:00:02]} 6. Bd3 {
[%emt 0:00:02]} c5 {[%emt 0:00:01]} 7. c3 {[%emt 0:00:01]} Nfd7 {[%emt 0:00:08]
} 8. Nbd2 {[%emt 0:00:04]} Nc6 {[%emt 0:00:01]} 9. O-O {[%emt 0:00:13]} b6 {
[%emt 0:00:01]} 10. e4 {[%emt 0:00:10]} cxd4 {[%emt 0:00:04]} 11. exd5 {
[%emt 0:00:02]} Nc5 {[%emt 0:00:23]} 12. Bb5 {[%emt 0:00:14]} Qxd5 {[%emt 0:01:
02]} 13. Bxc6 {[%emt 0:00:01]} Qxc6 {[%emt 0:00:01]} 14. cxd4 {[%emt 0:00:04]}
Ne6 {[%emt 0:00:13]} 15. Be3 {[%emt 0:00:02]} Bb7 {[%emt 0:00:01]} 16. Rc1 {
[%emt 0:00:12]} Qd5 {[%emt 0:00:03]} 17. Qa4 {[%emt 0:00:06]} Rfd8 {[%emt 0:00:
07]} 18. Rfd1 {[%emt 0:00:03]} a5 {[%emt 0:00:17]} 19. a3 {[%emt 0:00:35]} b5 {
[%emt 0:00:07]} 20. Qb3 {[%emt 0:00:07]} Qxb3 {[%emt 0:00:21]} 21. Nxb3 {
[%emt 0:00:02]} Bxf3 {[%emt 0:00:01]} 22. gxf3 {[%emt 0:00:01]} a4 {[%emt 0:00:
01]} 23. Nc5 {[%emt 0:00:26]} Nxd4 {[%emt 0:00:05]} 24. Kg2 {[%emt 0:00:01]}
Nb3 {[%emt 0:00:15]} 25. Rxd8+ {[%emt 0:00:30]} Rxd8 {[%emt 0:00:00]} 26. Nxb3
{[%emt 0:00:08]} axb3 27. Rc5 {[%emt 0:00:01]} Bxb2 {[%emt 0:00:12]} 28. Rxb5 {
[%emt 0:00:00]} Rd3 {[%emt 0:00:04]} 29. Bh6 {[%emt 0:00:09]} f6 {[%emt 0:00:
01]} 30. a4 {[%emt 0:00:03]} Be5 {[%emt 0:00:05]} 31. Bc1 {[%emt 0:00:08]} Rd1
{[%emt 0:00:11]} 32. Ba3 {[%emt 0:00:01]} Ra1 {[%emt 0:00:01]} 33. Rxb3 {
[%emt 0:00:01]} Kf7 {[%emt 0:00:01]} 34. a5 {[%emt 0:00:04]} Bd6 {[%emt 0:00:
06]} 35. Bxd6 {[%emt 0:00:08]} exd6 {[%emt 0:00:01]} 36. Rb7+ {[%emt 0:00:01]}
Ke6 {[%emt 0:00:01]} 37. Rxh7 {[%emt 0:00:02]} Rxa5 {[%emt 0:00:00]} 38. Rh4 {
[%emt 0:00:01]} d5 {[%emt 0:00:03]} 39. Rd4 {[%emt 0:00:03]} Ke5 {[%emt 0:00:
01]} 40. Rd2 {[%emt 0:00:02]} d4 {[%emt 0:00:01]} 41. Kg3 {[%emt 0:00:00]} Kd5
{[%emt 0:00:04]} 42. Kf4 {[%emt 0:00:03]} Kc4 {[%emt 0:00:01]} 43. Ke4 {
[%emt 0:00:02]} Re5+ {[%emt 0:00:00]} 44. Kf4 {[%emt 0:00:02]} d3 {[%emt 0:00:
00]} 45. Rd1 {[%emt 0:00:07]} Kc3 {[%emt 0:00:01]} 46. Rc1+ {[%emt 0:00:00]}
Kb2 {[%emt 0:00:01]} 47. Rc6 {[%emt 0:00:06]} g5+ {[%emt 0:00:03]} 48. Kg3 {
[%emt 0:00:04]} d2 {[%emt 0:00:01]} 49. Rd6 {[%emt 0:00:00]} Kc1 {[%emt 0:00:
01]} 50. Rc6+ {[%emt 0:00:01]} Kd1 {[%emt 0:00:01]} 51. Rd6 {[%emt 0:00:01]}
Ke1 {[%emt 0:00:01]} 0-1

[Event "GER-ch Blitz 2019"]
[Site "Magdeburg"]
[Date "2019.05.25"]
[Round "6.4"]
[White "Ehmann, Thilo"]
[Black "Zelbel, Patrick"]
[Result "1-0"]
[ECO "C63"]
[WhiteElo "2291"]
[BlackElo "2439"]
[Annotator "NA"]
[PlyCount "95"]
[EventDate "2019.05.25"]
[EventType "tourn"]
[EventCountry "GER"]
[Tiebreak "Number of wins+Number of black wins"]
[SourceTitle "playchess.com"]
[Source "ChessBase"]
[SourceQuality "1"]
[TimeControl "180+2"]

1. e4 {[%emt 0:00:00]} e5 {[%emt 0:00:00]} 2. Nf3 {[%emt 0:00:00]} Nc6 {
[%emt 0:00:00]} 3. Bb5 {[%emt 0:00:00]} f5 {[%emt 0:00:00]} 4. Nc3 {[%emt 0:00:
04]} fxe4 5. Nxe4 {[%emt 0:00:01]} Nf6 {[%emt 0:00:01]} 6. Qe2 {[%emt 0:00:18]}
d5 {[%emt 0:00:02]} 7. Nxf6+ {[%emt 0:00:09]} gxf6 {[%emt 0:00:00]} 8. d4 {
[%emt 0:00:09]} Bg7 {[%emt 0:00:01]} 9. O-O {[%emt 0:00:27]} O-O {[%emt 0:00:
04]} 10. Bxc6 {[%emt 0:00:36]} bxc6 {[%emt 0:00:01]} 11. dxe5 {[%emt 0:00:22]}
Re8 {[%emt 0:00:21]} 12. e6 {[%emt 0:00:19]} Rxe6 {[%emt 0:00:15]} 13. Qd3 {
[%emt 0:00:17]} c5 {[%emt 0:01:11]} 14. c4 {[%emt 0:00:09]} c6 {[%emt 0:00:17]}
15. b3 {[%emt 0:00:05]} Ba6 {[%emt 0:00:14]} 16. Qc2 {[%emt 0:00:10]} Qe8 {
[%emt 0:00:06]} 17. Ba3 {[%emt 0:00:04]} Re2 {[%emt 0:00:07]} 18. Qd3 {[%emt 0:
00:00]} Rd8 {[%emt 0:00:14]} 19. Rfe1 {[%emt 0:00:04]} Rxe1+ {[%emt 0:00:01]}
20. Rxe1 {[%emt 0:00:01]} Qf7 {[%emt 0:00:03]} 21. Bxc5 {[%emt 0:00:04]} Rd7 {
[%emt 0:00:04]} 22. Rd1 {[%emt 0:00:00]} Qe6 {[%emt 0:00:11]} 23. Qe3 {[%emt 0:
00:01]} Qxe3 {[%emt 0:00:08]} 24. Bxe3 {[%emt 0:00:02]} Kf7 {[%emt 0:00:02]}
25. cxd5 {[%emt 0:00:01]} Rxd5 {[%emt 0:00:01]} 26. Rxd5 {[%emt 0:00:01]} cxd5
{[%emt 0:00:01]} 27. Bxa7 {[%emt 0:00:01]} f5 {[%emt 0:00:04]} 28. Bd4 Bf8 29.
Nh4 {[%emt 0:00:08]} Ke6 {[%emt 0:00:03]} 30. f3 {[%emt 0:00:01]} Be7 {[%emt 0:
00:02]} 31. g3 {[%emt 0:00:01]} Bd3 {[%emt 0:00:07]} 32. a4 {[%emt 0:00:08]}
Bc2 {[%emt 0:00:01]} 33. a5 {[%emt 0:00:01]} Kd7 {[%emt 0:00:05]} 34. Kf2 {
[%emt 0:00:04]} Kc6 {[%emt 0:00:01]} 35. a6 {[%emt 0:00:02]} Bxh4 {[%emt 0:00:
03]} 36. gxh4 {[%emt 0:00:01]} Bxb3 {[%emt 0:00:01]} 37. Ke3 {[%emt 0:00:01]}
h5 {[%emt 0:00:09]} 38. a7 {[%emt 0:00:05]} Kb7 {[%emt 0:00:01]} 39. Kd2 {
[%emt 0:00:00]} Bc4 {[%emt 0:00:02]} 40. f4 {[%emt 0:00:01]} Bb5 {[%emt 0:00:
01]} 41. Kc3 {[%emt 0:00:03]} Bf1 {[%emt 0:00:05]} 42. Bc5 {[%emt 0:00:01]} Bg2
{[%emt 0:00:01]} 43. Kd4 {[%emt 0:00:01]} Be4 {[%emt 0:00:02]} 44. Ke5 {
[%emt 0:00:03]} Ka8 {[%emt 0:00:02]} 45. Bd4 {[%emt 0:00:00]} Kb7 {[%emt 0:00:
00]} 46. Kf6 {[%emt 0:00:01]} Bd3 {[%emt 0:00:09]} 47. Kg6 {[%emt 0:00:01]} Ka8
{[%emt 0:00:03]} 48. Kxh5 {[%emt 0:00:01]} 1-0

[Event "GER-ch Blitz 2019"]
[Site "Magdeburg"]
[Date "2019.05.25"]
[Round "6.5"]
[White "Kopylov, Daniel"]
[Black "Braeuer, Franz"]
[Result "0-1"]
[ECO "B90"]
[WhiteElo "2263"]
[BlackElo "2445"]
[Annotator "NA"]
[PlyCount "56"]
[EventDate "2019.05.25"]
[EventType "tourn"]
[EventCountry "GER"]
[Tiebreak "Number of wins+Number of black wins"]
[SourceTitle "playchess.com"]
[Source "ChessBase"]
[SourceQuality "1"]
[TimeControl "180+2"]

1. e4 {[%emt 0:00:00]} c5 {[%emt 0:00:00]} 2. Nf3 {[%emt 0:00:01]} d6 {[%emt 0:
00:00]} 3. d4 {[%emt 0:00:02]} cxd4 {[%emt 0:00:00]} 4. Nxd4 {[%emt 0:00:00]}
Nf6 {[%emt 0:00:01]} 5. Nc3 {[%emt 0:00:01]} a6 {[%emt 0:00:01]} 6. Be3 {
[%emt 0:00:02]} e5 {[%emt 0:00:00]} 7. Nf3 {[%emt 0:00:01]} Be7 {[%emt 0:00:01]
} 8. Bc4 {[%emt 0:00:02]} O-O {[%emt 0:00:07]} 9. O-O {[%emt 0:00:02]} Be6 {
[%emt 0:00:12]} 10. Bb3 {[%emt 0:00:03]} Nc6 {[%emt 0:00:11]} 11. Qe2 {[%emt 0:
00:02]} Rc8 {[%emt 0:00:05]} 12. Rfd1 {[%emt 0:00:02]} Qc7 {[%emt 0:00:35]} 13.
Bg5 {[%emt 0:00:26]} Na5 {[%emt 0:00:43]} 14. Nd2 {[%emt 0:00:22]} h6 {[%emt 0:
00:20]} 15. Bxf6 {[%emt 0:00:30]} Bxf6 {[%emt 0:00:00]} 16. Bd5 {[%emt 0:00:28]
} Nc6 17. Nf3 {[%emt 0:00:12]} Bg4 {[%emt 0:00:19]} 18. h3 {[%emt 0:00:10]} Nd4
{[%emt 0:00:08]} 19. Rxd4 {[%emt 0:00:30]} Bxf3 {[%emt 0:00:28]} 20. Qxf3 {
[%emt 0:00:02]} exd4 {[%emt 0:00:01]} 21. Ne2 {[%emt 0:00:01]} Qxc2 {[%emt 0:
00:02]} 22. Ng3 {[%emt 0:00:07]} Qxb2 {[%emt 0:00:04]} 23. Rf1 {[%emt 0:00:07]}
Rc1 {[%emt 0:00:01]} 24. Rxc1 {[%emt 0:00:30]} Qxc1+ {[%emt 0:00:01]} 25. Kh2 {
[%emt 0:00:01]} Be5 {[%emt 0:00:04]} 26. Qf5 {[%emt 0:00:02]} d3 {[%emt 0:00:
07]} 27. h4 {[%emt 0:00:03]} Qf4 {[%emt 0:00:08]} 28. Qh3 {[%emt 0:00:03]} d2
0-1